[Event "43rd Guernsey Festival 2017"]
[Site "Vale"]
[Date "2017.10.21"]
[Round "7"]
[White "Kraft, Karl-Heinz"]
[Black "Timmermans, Ivo"]
[Result "0-1"]
[ECO "C47"]
[WhiteElo "2036"]
[BlackElo "2126"]
[Annotator "NA"]
[PlyCount "85"]
[EventDate "2017.??.??"]
[EventType "swiss"]
[EventCountry "GCI"]
[SourceTitle "playchess.com"]
[Source "ChessBase"]
[SourceQuality "1"]
[TimeControl "40/6000+30:2400+30"]

1. e4 {[%emt 0:00:00]} e5 {[%emt 0:00:16]} 2. Nc3 {[%emt 0:00:00]} Nf6 {[%emt 0:00:14]} 3. Nf3 {[%emt 0:00:00]} Nc6 {[%emt 0:00:12]} 4. d4 {[%emt 0:00:04]} exd4 {[%emt 0:00:11]} 5. Nd5 {[%emt 0:00:04]} Nxe4 {[%emt 0:00:44]} 6. Bc4 {[%emt 0:00:11] C47: Scotch Four Knights and Four Knights with 4 g3} Be7 {[%emt 0:05:20]} (6... Bb4+ $5 7. Nxb4 (7. c3 dxc3 8. O-O O-O 9. Re1 Nd2 10. Bd3 c2 11. Bxh7+ Kxh7 12. Qxc2+ Kg8 13. Bxd2 Bxd2 14. Qxd2 {½-½ (33) Kraft,K (2630)-Read,M (2571) ICCF corr 1999}) 7... Nxb4 $15) 7. O-O {[%emt 0:00:48]} O-O {[%emt 0:01:09]} 8. Nxd4 {[%emt 0:00:26] LiveBook: 3 Games} Nf6 {[%emt 0:04:51]} 9. Nxc6 {[%emt 0:05:31]} dxc6 {[%emt 0:06:32]} 10. Nxe7+ {[%emt 0:00:54]} Qxe7 {[%emt 0:00:08]} 11. Re1 {[%emt 0:08:25]} Qc5 $146 {[%emt 0:09:53]} ({Predecessor:} 11... Qd6 12. Qf3 Bg4 13. Qb3 b5 14. Bd3 Rfe8 {1-0 (54) Hoffmann,L (2157)-Heimann,A (2095) playchess.com INT 2005}) 12. Qd3 {[%emt 0:15:27]} Bf5 {[%emt 0:03:22]} 13. Qc3 {[%emt 0:04:36]} Qd6 {[%emt 0:11:38]} 14. Be3 {[%emt 0:12:48]} Ng4 {[%emt 0:03:56]} 15. g3 {[%emt 0:01:09]} Nxe3 {[%emt 0:01:01]} 16. Rxe3 {[%emt 0:01:32]} Qd7 {[%emt 0:24:02]} 17. Bd3 {[%emt 0:25:02]} Rfe8 {[%emt 0:04:29]} 18. Rae1 {[%emt 0:00:55]} Rxe3 {[%emt 0:00:15]} 19. Rxe3 {[%emt 0:00:12]} Be6 {[%emt 0:04:43]} 20. Qb4 {[%emt 0:03:13]} b6 {[%emt 0:02:53]} 21. Qh4 {[%emt 0:06:21]} g6 {[%emt 0:02:33]} 22. Qf6 {[%emt 0:01:37]} c5 {[%emt 0:07:38]} 23. h4 {[%emt 0:02:39]} Qd4 {[%emt 0:04:00]} ({Bitte nicht} 23... Bxa2 $6 24. b3 $14) 24. Qg5 {[%emt 0:08:10]} c4 {[%emt 0:02:12]} ({Bloß nicht} 24... Bxa2 25. b3 $11) (24... Qxb2 $19 25. h5 Bxa2 26. hxg6 hxg6) 25. Be4 {[%emt 0:01:47]} Re8 $17 {[%emt 0:01:09]} 26. c3 {[%emt 0:03:51]} Qd8 {[%emt 0:01:25]} 27. Qh6 {[%emt 0:01:37]} Qd1+ {[%emt 0:02:55]} 28. Kh2 {[%emt 0:03:54]} Rd8 {[%emt 0:02:14]} 29. Bxg6 {[%emt 0:01:48]} hxg6 {[%emt 0:02:27]} 30. Rxe6 {[%emt 0:00:05]} Qf3 {[%emt 0:00:56]} 31. Qe3 {[%emt 0:01:40]} Qxe3 {[%emt 0:00:11]} 32. Rxe3 {[%emt 0:00:03]} Rd2 {[%emt 0:00:14]} 33. Kg2 {[%emt 0:00:27]} Rxb2 {[%emt 0:00:28]} 34. Re7 {[%emt 0:00:27]} Rxa2 {[%emt 0:00:44]} 35. Rxc7 {[%emt 0:00:03]} b5 {[%emt 0:00:16]} 36. Rb7 {[%emt 0:01:27]} a6 {[%emt 0:00:21]} 37. Ra7 {[%emt 0:00:21]} Ra3 {[%emt 0:00:56]} 38. Kf1 {[%emt 0:00:26]} Rxc3 {[%emt 0:01:27]} 39. Rxa6 {[%emt 0:00:04]} b4 {[%emt 0:00:14]} 40. Rb6 {[%emt 0:00:44]} b3 {[%emt 0:40:25]} 41. Ke2 {[%emt 0:02:23]} Rc2+ {[%emt 0:00:00]} 42. Ke3 {[%emt 0:00:55]} b2 {[%emt 0:00:00]} 43. Kd4 0-1

[Event "43rd Guernsey Festival 2017"]
[Site "Vale"]
[Date "2017.10.21"]
[Round "7"]
[White "Vorstermans, Peter"]
[Black "Maloberti, David"]
[Result "1/2-1/2"]
[ECO "C00"]
[WhiteElo "2007"]
[BlackElo "2132"]
[Annotator "NA"]
[PlyCount "80"]
[EventDate "2017.??.??"]
[EventType "swiss"]
[EventCountry "GCI"]
[SourceTitle "playchess.com"]
[Source "ChessBase"]
[SourceQuality "1"]
[TimeControl "40/6000+30:2400+30"]

{[%evp 8,57,-6,-12,11,-2,33,20,33,34,41,0,72,-18,-32,-31,-4,32767,32767,32767,32767,32767,32767,32767,32767,39,44,31,47,32,46,34,37,23,22,0,27,4,22,0,0,-45,-28,-48,-45,-43,32767,-40,-33,32767,32767,-64]} 1. e4 {[%emt 0:00:00]} e6 {[%emt 0:00:13]} 2. Qe2 {[%emt 0:00:00]} c5 {[%emt 0:02:04]} 3. Nf3 {[%emt 0:00:00]} Nc6 {[%emt 0:01:25]} 4. g3 {[%emt 0:00:10]} Nge7 {[%emt 0:05:50]} 5. Bg2 {[%emt 0:04:13] C00: French: Unusual White 2nd moves} d5 {[%emt 0:00:07]} 6. d3 {[%emt 0:04:05]} dxe4 {[%emt 0:05:43]} (6... g6 7. O-O Bg7 8. e5 b6 9. c3 h6 10. h4 Qc7 11. Re1 Bb7 12. Na3 a6 13. Nc2 a5 14. a4 Ba6 15. Na3 Na7 16. c4 Rd8 17. Nb5 Nxb5 18. cxb5 {1-0 (38) Svetushkin,D (2546)-Pavlov,S (2502) Corund 2017}) 7. dxe4 {[%emt 0:00:10]} Nd4 {[%emt 0:04:04]} 8. Nxd4 {[%emt 0:06:35]} cxd4 {[%emt 0:00:09] LiveBook: 11 Games} 9. O-O {[%emt 0:02:19]} Nc6 {[%emt 0:03:54]} (9... e5 $11) 10. f4 {[%emt 0:08:05]} (10. e5 $1 $14) 10... Bc5 $146 {[%emt 0:00:55]} ({Predecessor:} 10... Be7 11. e5 Qb6 12. Kh1 Bd7 13. Rd1 {0-1 (46) Bujupi,F (2240)-Huss,A (2325) Biel 1997}) 11. Kh1 {[%emt 0:00:34]} O-O {[%emt 0:04:49]} 12. Nd2 {[%emt 0:02:34]} b6 {[%emt 0:06:42]} 13. e5 {[%emt 0:06:16]} Bb7 {[%emt 0:01:12]} 14. Ne4 {[%emt 0:00:22]} Be7 {[%emt 0:09:29]} 15. a3 {[%emt 0:10:41]} a5 {[%emt 0:01:16]} 16. Rd1 {[%emt 0:04:39]} Qc7 {[%emt 0:02:11]} 17. Bd2 {[%emt 0:01:03]} Ba6 {[%emt 0:08:24]} 18. Qg4 {[%emt 0:00:57]} Kh8 {[%emt 0:00:07]} 19. Qh5 {[%emt 0:04:06]} Rad8 {[%emt 0:04:56]} 20. Rac1 {[%emt 0:07:03]} Bc4 {[%emt 0:01:42]} 21. g4 {[%emt 0:04:08]} f6 {[%emt 0:11:21]} 22. exf6 {[%emt 0:05:54]} Bxf6 {[%emt 0:03:28]} 23. g5 {[%emt 0:00:49]} g6 {[%emt 0:00:28]} 24. Qg4 {[%emt 0:03:33]} Bg7 {[%emt 0:01:39]} 25. b3 {[%emt 0:05:45]} Bd5 {[%emt 0:00:26]} 26. Re1 {[%emt 0:01:46]} Qf7 {[%emt 0:08:35]} 27. Rf1 {[%emt 0:08:49]} Qe7 {[%emt 0:04:06]} 28. a4 {[%emt 0:04:26]} Nb4 {[%emt 0:02:04]} 29. Nf2 $15 {[%emt 0:06:16]} Nc6 {[%emt 0:06:33]} 30. Nd3 {[%emt 0:00:44]} Rf5 {[%emt 0:01:03]} 31. Rfe1 {[%emt 0:01:16]} Qf7 {[%emt 0:01:24]} 32. Re2 {[%emt 0:00:56]} e5 {[%emt 0:04:01]} 33. Bxd5 {[%emt 0:00:49]} Qxd5+ {[%emt 0:00:10]} 34. Qg2 {[%emt 0:00:11]} Qxg2+ {[%emt 0:00:11]} 35. Kxg2 {[%emt 0:00:08]} exf4 {[%emt 0:00:33]} 36. Bxf4 {[%emt 0:00:16]} Nb4 {[%emt 0:02:05]} 37. Bd2 {[%emt 0:02:18]} Nd5 {[%emt 0:00:24]} 38. h4 {[%emt 0:00:31]} Kg8 {[%emt 0:00:28]} 39. Rf1 {[%emt 0:01:04]} Rdf8 {[%emt 0:01:34]} 40. Rxf5 {[%emt 0:00:10]} Rxf5 {[%emt 0:40:04]} 1/2-1/2

[Event "43rd Guernsey Festival 2017"]
[Site "Vale"]
[Date "2017.10.21"]
[Round "7"]
[White "Munshi, Aditya"]
[Black "Whatley, Stephen A J"]
[Result "0-1"]
[ECO "B30"]
[WhiteElo "1986"]
[BlackElo "2159"]
[Annotator "NA"]
[PlyCount "59"]
[EventDate "2017.??.??"]
[EventType "swiss"]
[EventCountry "GCI"]
[SourceTitle "playchess.com"]
[Source "ChessBase"]
[SourceQuality "1"]
[TimeControl "40/6000+30:2400+30"]

{[%evp 8,59,27,9,4,14,30,28,39,47,97,128,128,0,116,101,98,81,215,185,209,32767,32767,227,32767,212,32767,224,222,226,183,216,230,183,164,162,212,185,194,214,201,32767,32767,32767,32767,162,174,170,150,32767,32767,32767,0,0]} 1. e4 {[%emt 0:00:00]} c5 {[%emt 0:06:31]} 2. Nf3 {[%emt 0:00:00]} Nc6 {[%emt 0:01:20]} 3. Bb5 {[%emt 0:00:09]} e6 {[%emt 0:00:08]} 4. Bxc6 {[%emt 0:00:20]} bxc6 {[%emt 0:04:09]} 5. b3 {[%emt 0:00:19]} d6 {[%emt 0:00:56]} 6. e5 {[%emt 0:00:22] B30: Sicilian: 2...Nc6 3 Bb5, lines without ...g6} dxe5 {[%emt 0:00:20] LiveBook: 20 Games} 7. Nxe5 {[%emt 0:00:09]} Qg5 {[%emt 0:00:27]} 8. Ng4 {[%emt 0:00:48]} f5 {[%emt 0:01:23] [#]} 9. Qf3 $1 {[%emt 0:00:12]} fxg4 {[%emt 0:00:43]} 10. Qxc6+ {[%emt 0:00:33]} Kf7 {[%emt 0:01:29]} (10... Kd8 $11 {keeps the balance.} 11. Qxa8 Qe5+ 12. Kd1 Qxa1) 11. Qxa8 {[%emt 0:02:18]} Qe5+ {[%emt 0:00:11]} 12. Kd1 {[%emt 0:00:13]} Qc7 {[%emt 0:00:43] [#]} (12... Qxa1 $16 13. Qxc8 Qxb1) 13. Qe4 $1 {[%emt 0:03:10]} Nf6 {[%emt 0:03:04] [#]} 14. Qe2 $146 {[%emt 0:34:19]} Bb7 {[%emt 0:06:25]} 15. f3 {[%emt 0:11:48]} gxf3 {[%emt 0:01:49]} 16. gxf3 {[%emt 0:01:38]} Qf4 {[%emt 0:02:02]} 17. d3 {[%emt 0:11:30]} Qxf3 {[%emt 0:10:51]} 18. Rf1 {[%emt 0:01:13]} Qxe2+ {[%emt 0:05:28]} 19. Kxe2 {[%emt 0:00:01]} Bd6 {[%emt 0:03:15]} 20. Nd2 {[%emt 0:08:21]} Bxh2 {[%emt 0:01:40]} 21. Nc4 {[%emt 0:06:42]} h5 {[%emt 0:20:54] [#]} 22. Bf4 $1 {[%emt 0:05:46]} Bxf4 {[%emt 0:00:57]} 23. Rxf4 {[%emt 0:00:01]} g5 {[%emt 0:02:58]} 24. Ne5+ {[%emt 0:07:04]} Kg7 {[%emt 0:00:09]} 25. Rg1 {[%emt 0:05:04]} g4 {[%emt 0:00:07]} 26. Ra4 {[%emt 0:01:26]} a6 {[%emt 0:01:01]} 27. Rc4 {[%emt 0:00:49]} Rc8 {[%emt 0:04:14]} 28. Kd1 {[%emt 0:05:16]} Nd5 {[%emt 0:02:18]} 29. Kc1 {[%emt 0:02:54]} Ne3 {[%emt 0:02:15]} 30. Rf4 $11 {[%emt 0:01:49]} 0-1